{"text_format":"3","workbook":"xlsx","n_sheets":1,"sheets":["Calcul marges et coefficients"],"not_rendered":{"defined_names":21},"read":"whole","date_system":"1900"}

{"sheet":"Calcul marges et coefficients","index":0,"n_rows":26,"n_cols":9,"rows_kept":26,"merged":[[2,2,2,3],[2,7,2,8],[11,2,11,3],[19,2,19,3],[19,7,19,8]]}
[]
[]
[null,null,"1. Calcul du taux de marge sur vente à partir \n    d'un coefficient multiplicateur sur prix d'achat",{"$nulls":4},"2. Calcul du taux de marge sur vente \n    à partir du taux de marge sur achat"]
[]
[null,null,{"$f":"IF(ISBLANK(D5),\"Coefficient multiplicateur sur prix d'achat ?\",\"Coefficient multiplicateur sur prix d'achat\")","v":"Coefficient multiplicateur sur prix d'achat ?"},{"$nulls":4},{"$f":"IF(ISBLANK(I5),\"Taux de marge sur prix d'achat ?\",\"Taux de marge sur prix d'achat\")","v":"Taux de marge sur prix d'achat ?"}]
[null,null," = Taux de marge sur achat",{"$f":"IF(ISBLANK(D5),\" \",(D5/1)-1)","v":" "},{"$nulls":3},"= Coefficient multiplicateur sur prix d'achat",{"$f":"IF(ISBLANK(I5),\" \",1+I5)","v":" "}]
[null,null,"= Taux de marge sur prix de vente public",{"$f":"IF(ISERROR(D6/(1+D6)),\" \",D6/(1+D6))","v":" "},{"$nulls":3},"= Taux de marge sur prix de vente public",{"$f":"IF(ISBLANK(I5),\" \",I5/(1+I5))","v":" "}]
[null,null,{"$f":"IF(ISBLANK(D8),\"Taux de remise accordé ?\",\"Taux de remise accordé\")","v":"Taux de remise accordé ?"},{"$nulls":4},{"$f":"IF(ISBLANK(I8),\"Taux de remise accordé ?\",\"Taux de remise accordé\")","v":"Taux de remise accordé ?"}]
[null,null,"= Taux de marge sur prix de vente net",{"$f":"IF(ISERROR(IF(ISBLANK(D5),\" \",((D5*(1-D8))-1)/(D5*(1-D8)))),\" \",IF(ISBLANK(D5),\" \",((D5*(1-D8))-1)/(D5*(1-D8))))","v":" "},{"$nulls":3},"= Taux de marge sur prix de vente net",{"$f":"IF(ISBLANK(I5),\" \",((I6*(1-I8))-1)/(I6*(1-I8)))","v":" "}]
[]
[]
[null,null,"I - Calcul du taux de marge à partir du taux de marque"]
[{"$nulls":7},"II - Calcul du taux de marque à partir du taux de marge"]
[null,null,"Taux de marque (marge sur prix d'achat) :",{"v":0.538,"d":"53.8%"}]
[null,null,"=> Taux de marge (marge sur prix de vente) :",{"$f":"tx_de_marque/(1+tx_de_marque)","v":{"$error":"#NAME?"}},{"$nulls":3},"Taux de marge (marge sur prix de vente) :",{"v":0.35,"d":"35%"}]
[null,null,"=> Coefficient multiplicateur sur prix d'achat :",{"$f":"IF(ISBLANK(tx_de_marque),\" \",1+tx_de_marque)","v":{"$error":"#NAME?"}},{"$nulls":3},"=> Taux de marque (marge sur prix d'achat) :",{"$f":"I15/(1-I15)","v":{"v":0.5384615384615384,"d":"53.8%"}}]
[{"$nulls":7},"=> Coefficient multiplicateur sur prix d'achat :",{"$f":"IF(ISBLANK(tx_de_marge),\" \",1+(tx_de_marge/(1-tx_de_marge)))","v":{"$error":"#NAME?"}}]
[]
[]
[null,null,"3. Calcul du taux de marge sur achat \n    à partir du taux de marge sur vente",{"$nulls":4},"4. Chiffre d'affaires et marge sur vente"]
[]
[null,null,{"$f":"IF(ISBLANK(D22),\"Taux de marge sur prix de vente net souhaité ?\",\"Taux de marge sur prix de vente net souhaité\")","v":"Taux de marge sur prix de vente net souhaité ?"},{"$nulls":4},{"$f":"IF(ISBLANK(I22),\"Taux de marge sur vente actuel ?\",\"Taux de marge sur vente actuel\")","v":"Taux de marge sur vente actuel ?"}]
[null,null,{"$f":"IF(ISBLANK(D23),\"Taux de remise accordé ?\",\"Taux de remise accordé\")","v":"Taux de remise accordé ?"},{"$nulls":4},"En réduisant vos prix de vente de "]
[null,null,"= Taux de marge sur prix de vente public",{"$f":"IF(ISERROR(D22*(1+D23)),\" \",D22*(1+D23))","v":{"v":0,"d":"0.00%"}},{"$nulls":3},"Vous devez accroître votre chiffre d'affaires de",{"$f":"IF(ISERROR(IF(ISBLANK(I22),\" \",I23/(I22-I23))),\" \",IF(ISBLANK(I22),\" \",I23/(I22-I23)))","v":" "}]
[null,null,"= Coefficient multiplicateur sur prix d'achat ",{"$f":"IF(ISBLANK(D22),\" \",(1+(D22/(1-D22)))/(1-D23))","v":" "}]
[null,null,"= Taux de marge sur prix d'achat",{"$f":"IF(ISBLANK(D22),\" \",D25-1)","v":" "}]